fUSD/lending_fUSD_20260304
["ID","MTS","AMOUNT","RATE_DAILY","PERIOD"]
[407643451,1772601040443,-151.0,0.00014109,2]
[407643452,1772601040454,-151.0,0.00014109,2]
[407643453,1772601040464,-151.0,0.00014109,2]
[407643454,1772601040473,-151.0,0.00014109,2]
[407643455,1772601040483,-218.23513463,0.00014109,2]
[407643456,1772601040496,-151.0,0.00014109,2]
[407643457,1772601040506,-151.0,0.00014109,2]
[407643458,1772601040516,-151.0,0.00014109,2]
[407643459,1772601040525,-151.0,0.00014109,2]
[407643460,1772601040534,-151.0,0.00014109,2]
[407643461,1772601040543,-151.0,0.00014109,2]
[407643462,1772601040553,-151.0,0.00014109,2]
[407643463,1772601040562,-236.11223707,0.00014109,2]
[407643464,1772601040571,-151.0,0.00014109,2]
[407643465,1772601040581,-151.0,0.00014109,2]
[407643466,1772601040590,-151.0,0.00014109,2]
[407643467,1772601040600,-151.0,0.00014109,2]
[407643468,1772601040610,-151.0,0.00014109,2]
[407643469,1772601040619,-151.0,0.00014109,2]
[407643470,1772601040628,-151.0,0.00014109,2]
[407643471,1772601040638,-151.0,0.00014109,2]
[407643472,1772601040648,-151.0,0.00014109,2]
[407643473,1772601040657,-151.0,0.00014109,2]
[407643474,1772601040666,-151.0,0.00014109,2]
[407643475,1772601040675,-6998.47031306,0.00014117,2]
[407643476,1772601040691,-3245.4683156,0.00014117,2]
[407643479,1772601040728,-11629.60520908,0.00014117,2]
[407643480,1772601040738,-3387.0,0.00014118,2]
[407643481,1772601040749,-988.89,0.00014189,2]
[407643482,1772601040759,-506.0,0.000142,2]
[407643483,1772601040768,-150.0,0.00014218,2]
[407643484,1772601040778,-150.0,0.00014218,2]
[407643485,1772601040787,-150.0,0.00014218,2]
[407643486,1772601040798,-150.0,0.00014218,2]
[407643487,1772601040807,-1341.0,0.00014218,2]
[407643488,1772601040817,-619.0,0.00014218,2]
[407643489,1772601040827,-3501.0,0.00014218,2]
[407643490,1772601040837,-1278.0,0.00014218,2]
[407643491,1772601040847,-1212.0,0.00014218,2]
[407643492,1772601040858,-921.0,0.00014218,2]
[407643493,1772601040867,-500.0,0.00014373,2]
[407643494,1772601040881,-615.62090976,0.00014373,2]
[407643495,1772601040890,-500.0,0.00014373,2]
[407643496,1772601040900,-502.20690295,0.00014373,2]
[407643497,1772601040909,-501.58257633,0.00014373,2]
[407643498,1772601040918,-500.47868954,0.00014373,2]
[407643499,1772601040927,-500.0,0.00014373,2]
[407643500,1772601040936,-502.23134067,0.00014373,2]
[407643501,1772601040946,-500.63680364,0.00014373,2]
[407643502,1772601040956,-502.23611709,0.00014373,2]
[407643503,1772601040965,-409.93322699,0.00014449,2]
[407643504,1772601040974,-988.89,0.00014519,2]
[407643505,1772601040984,-409.93322699,0.00014881,2]
[407643506,1772601040994,-250.0,0.00015,2]
[407643507,1772601041003,-150.0,0.00015113,2]
[407643508,1772601041013,-1639.4945,0.00015179,2]
[407643509,1772601041022,-409.93322699,0.00015312,2]
[407643510,1772601041032,-150.17044796,0.00015329,2]
[407643511,1772601041041,-500.0,0.00015502,2]
[407643512,1772601041051,-500.0,0.00015502,2]
[407643513,1772601041061,-500.0,0.00015502,2]
[407643514,1772601041075,-500.0,0.00015502,2]
[407643515,1772601041085,-500.0,0.00015502,2]
[407643516,1772601041094,-315.97907577,0.00015502,2]
[407643517,1772601041104,-578.20924308,0.00015502,2]
[407643518,1772601041114,-174.61919141,0.00015502,2]
[407643519,1772601041123,-693.3919763,0.00015502,2]
[407643520,1772601041134,-719.04747942,0.00015557,2]
[407643521,1772601041144,-745.65223616,0.00015612,2]
[407643522,1772601041154,-773.2413689,0.00015667,2]
[407643523,1772601041164,-801.85129955,0.00015722,2]
[407643524,1772601041173,-409.93322699,0.00015743,2]
[407643525,1772601041183,-831.51979763,0.00015777,2]
[407643526,1772601041192,-862.28603014,0.00015832,2]
[407643527,1772601041202,-894.19061326,0.00015887,2]
[407643528,1772601041212,-927.27566595,0.00015942,2]
[407643529,1772601041222,-961.58486559,0.00015997,2]
[407643530,1772601041231,-181.08010149,0.0001605,2]
[407643531,1772601041241,-997.16350561,0.00016052,2]
[407643532,1772601041250,-409.93322699,0.00016175,2]
[407643533,1772601041263,-5070.3196399,0.000162,5]
[407643534,1772601041273,-187.78006525,0.00016598,2]
[407643535,1772601041282,-409.93322699,0.00016606,2]
[407643536,1772601041292,-150.17044796,0.00016614,2]
[407643537,1772601041301,-5987.0,0.00016849,2]
[407643538,1772601041310,-1736.295,0.00016849,2]
[407643539,1772601041325,-2458.0,0.00016849,2]
[407643540,1772601041334,-500.0,0.00016973,2]
[407643541,1772601041343,-537.93,0.0001699,2]
[407643542,1772601041353,-300.0,0.00017,2]
[407643543,1772601041363,-1000.0,0.00017018,2]
[407643544,1772601041372,-409.93322699,0.00017037,2]
[407643545,1772601041381,-343.67311871,0.00017146,2]
[407643546,1772601041389,-150.0,0.00017218,2]
[407643547,1772601041398,-150.0,0.00017218,2]
[407643548,1772601041406,-1341.0,0.00017218,2]
[407643549,1772601041414,-619.0,0.00017218,2]
[407643550,1772601041423,-3501.0,0.00017218,2]
[407643551,1772601041432,-1278.0,0.00017218,2]
[407643552,1772601041441,-1212.0,0.00017218,2]
[407643553,1772601041450,-921.0,0.00017218,2]
[407643554,1772601041459,-152.0,0.00017228,3]
[407643555,1772601041471,-537.93,0.0001726,2]
[407643556,1772601041480,-767.753,0.00017289,2]
[407643557,1772601041490,-1500.0,0.000173,6]
[407643558,1772601041500,-211.284,0.00017351,2]
[407643559,1772601041510,-300.0,0.000174,6]
[407643560,1772601041519,-409.93322699,0.00017469,2]
[407643561,1772601041529,-300.0,0.000175,6]
[407643562,1772601041538,-1000.0,0.00017521,2]
[407643563,1772601041548,-537.93,0.0001753,2]
[407643564,1772601041557,-731.73766692,0.000176,2]
[407643565,1772601041567,-300.0,0.000176,6]
[407643566,1772601041576,-731.73766692,0.00017633,2]
[407643567,1772601041585,-1044.35414785,0.0001764,2]
[407643568,1772601041595,-1001.52216826,0.0001764,2]
[407643569,1772601041604,-1070.45048114,0.0001764,2]
[407643570,1772601041613,-1108.25604724,0.0001764,2]
[407643571,1772601041623,-1085.51711367,0.0001764,2]
[407643572,1772601041633,-1115.35274752,0.0001764,2]
[407643573,1772601041642,-1112.11353264,0.0001764,2]
[407643574,1772601041651,-1089.45887695,0.0001764,2]
[407643575,1772601041660,-1098.50661356,0.0001764,2]
[407643576,1772601041669,-1040.70119285,0.0001764,2]
[407643577,1772601041679,-1045.97918064,0.0001764,2]
[407643578,1772601041688,-1034.48189839,0.0001764,2]
[407643579,1772601041697,-1119.65823175,0.0001764,2]
[407643580,1772601041707,-1311.08532605,0.0001764,2]
[407643581,1772601041716,-731.73766692,0.00017667,2]
[407643582,1772601041725,-300.0,0.000177,6]
[407643583,1772601041735,-150.0,0.00017726,2]
[407643584,1772601041744,-150.0,0.00017726,2]
[407643585,1772601041753,-150.0,0.00017781,2]
[407643586,1772601041762,-537.93,0.000178,2]
[407643587,1772601041771,-301.0,0.000178,6]
[407643588,1772601041781,-150.0,0.00017808,2]
[407643589,1772601041790,-455.09330618,0.00017808,2]
[407643590,1772601041799,-6779.0990771,0.0001783,2]
[407643591,1772601041808,-200.0,0.00017836,2]
[407643592,1772601041818,-213.08386336,0.00017863,2]
[407643593,1772601041827,-295.58552239,0.00017873,2]
[407643594,1772601041837,-190.29061218,0.000179,3]
[407643595,1772601041846,-242.13901799,0.000179,3]
[407643596,1772601041855,-228.97630119,0.000179,3]
[407643597,1772601041865,-255.62875887,0.000179,3]
[407643598,1772601041874,-150.17044796,0.000179,2]
[407643599,1772601041884,-184.1089038,0.000179,2]
[407643600,1772601041894,-409.93322699,0.000179,2]
[407643601,1772601041903,-199.97678892,0.000179,3]
[407643602,1772601041912,-500.0,0.000179,2]
[407643603,1772601041922,-500.0,0.000179,2]
[407643604,1772601041932,-500.0,0.000179,2]
[407643605,1772601041941,-500.0,0.000179,2]
[407643606,1772601041951,-500.0,0.000179,2]
[407643607,1772601041960,-500.0,0.000179,2]
[407643608,1772601041970,-500.0,0.000179,2]
[407643609,1772601041980,-500.0,0.000179,2]
[407643610,1772601041989,-500.0,0.000179,2]
[407643611,1772601041999,-500.0,0.000179,2]
[407643612,1772601042008,-500.0,0.000179,2]
[407643613,1772601042018,-500.0,0.000179,2]
[407643614,1772601042028,-500.0,0.000179,2]
[407643615,1772601042037,-500.0,0.000179,2]
[407643616,1772601042047,-500.0,0.000179,2]
[407643617,1772601042057,-500.0,0.000179,2]
[407643618,1772601042071,-500.0,0.000179,2]
[407643619,1772601042080,-500.0,0.000179,2]
[407643620,1772601042089,-500.0,0.000179,2]
[407643621,1772601042099,-500.0,0.000179,2]
[407643622,1772601042111,-500.0,0.000179,2]
[407643623,1772601042122,-500.0,0.000179,2]
[407643624,1772601042131,-500.0,0.000179,2]
[407643625,1772601042141,-500.0,0.000179,2]
[407643626,1772601042150,-500.0,0.000179,2]
[407643627,1772601042160,-500.0,0.000179,2]
[407643628,1772601042169,-500.0,0.000179,2]
[407643629,1772601042179,-500.0,0.000179,2]
[407643630,1772601042190,-500.0,0.000179,2]
[407643631,1772601042200,-500.0,0.000179,2]
[407643632,1772601042210,-500.0,0.000179,2]
[407643633,1772601042219,-500.0,0.000179,2]
[407643634,1772601042231,-500.0,0.000179,2]
[407643635,1772601042241,-500.0,0.000179,2]
[407643636,1772601042251,-500.0,0.000179,2]
[407643637,1772601042260,-500.0,0.000179,2]
[407643638,1772601042270,-500.0,0.000179,2]
[407643639,1772601042279,-187.69382096,0.000179,2]
[407643640,1772601042289,-165.68914303,0.00017973,2]
[407643641,1772601042299,-152.35238748,0.00017973,2]
[407643642,1772601042308,-203.95948603,0.0001799,2]
[407643643,1772601042318,-203.95948603,0.0001799,2]
[407643644,1772601042328,-193.35056413,0.00017997,2]
[407643645,1772601042337,-191.15219957,0.00017999,2]
[407643646,1772601042347,-500.0,0.00017999,2]
[407643647,1772601042356,-500.0,0.00017999,2]
[407643648,1772601042366,-193.8265727,0.00017999,2]
[407643649,1772601042375,-58223.59266575,0.00018,2]
[407643650,1772601042389,-1460878.76965978,0.00018,2]
[407643655,1772601043130,-4402.91432083,0.00018,2]
[407643656,1772601043143,-259095.62064206,0.00018,2]
[407643657,1772601043186,-1123.03700653,0.0001764,2]
[407643658,1772601043195,-1810.54823474,0.00018,2]
[407643659,1772601043206,-4441.23959371,0.00018,2]
[407643660,1772601043218,-557.96001026,0.00018,2]
[407643661,1772601043230,-562.85656461,0.00018,2]
[407643662,1772601043241,-7278.78791481,0.00018,2]
[407643671,1772601045823,-1062.02662497,0.0001764,2]
[407643672,1772601045833,-731.73766692,0.000177,2]
[407643673,1772601045843,-246430.93783448,0.00018,2]
[407643674,1772601045941,-9312.41458587,0.00018,2]
[407643675,1772601045990,-1058.34907295,0.0001764,2]
[407643676,1772601046000,-49488.64389517,0.00018,2]
[407643677,1772601046046,-521.50544742,0.00018,2]
[407643678,1772601046057,-970.51580393,0.00018,2]
[407643682,1772601143605,500.0,9.003e-05,2]
[407643683,1772601147233,500.0,9.003e-05,2]
[407643688,1772601997129,-154.0,9.003e-05,3]
[407643689,1772601997149,-49.76387801,9.6e-05,2]
[407643690,1772602168088,-101.44612199,9.6e-05,2]
[407643691,1772602168111,-229.0,9.6e-05,2]
[407643692,1772602168133,-1000.0,0.0001,2]
[407643693,1772602168153,-1000.0,0.000105,2]
[407643694,1772602168174,-245.98799775,0.00011308,2]
[407643695,1772602168195,-154.0,0.00011586,3]
[407643696,1772602168217,-168.39,0.00012132,2]
[407643697,1772602168239,-512.0,0.00012199,2]
[407643698,1772602168261,-302.41424113,0.000122,2]
[407643704,1772602232000,-154.0,9.003e-05,3]
[407643706,1772602232010,-96.0,0.00011909,3]
[407643707,1772602232123,-58.0,0.00011909,3]
[407643708,1772602232136,-250.0,0.000122,2]
[407643709,1772602232146,-197.58575887,0.000122,2]
[407643710,1772602232157,-1.51824113,0.000122,2]
[407643711,1772602232168,-371.55397753,0.000122,2]
[407643712,1772602232178,-500.0,0.000122,2]
[407643713,1772602232188,-500.0,0.000122,2]
[407643714,1772602232197,-500.0,0.000122,2]
[407643715,1772602232207,-500.0,0.000122,2]
[407643716,1772602232216,-500.0,0.000122,2]
[407643717,1772602232225,-262.23534842,0.000122,2]
[407643718,1772602232235,-500.0,0.0001342,2]
[407643719,1772602232244,-2500.0,0.0001342,2]
[407643720,1772602232254,-600.0,0.00013863,2]
[407643721,1772602232263,-600.0,0.00013863,2]
[407643722,1772602232273,-600.0,0.00013863,2]
[407643723,1772602232282,-600.0,0.00013863,2]
[407643724,1772602232292,-600.0,0.00013863,2]
[407643725,1772602232301,-506.0,0.000142,2]
[407643726,1772602232311,-500.62982044,0.00014373,2]
[407643727,1772602232321,-318.03151824,0.00014373,2]
[407643728,1772602232330,-166.66,0.00014455,2]
[407643729,1772602232340,-221.66013292,0.00014529,2]
[407643731,1772602232350,-200.0,0.00014646,2]
[407643732,1772602232359,-151.0,0.00014646,2]
[407643733,1772602232368,-151.0,0.00014646,2]
[407643734,1772602232378,-151.0,0.00014646,2]
[407643735,1772602232389,-151.0,0.00014646,2]
[407643736,1772602232398,-151.0,0.00014646,2]
[407643737,1772602232408,-151.0,0.00014646,2]
[407643739,1772602232420,-151.0,0.00014646,2]
[407643740,1772602232429,-151.0,0.00014646,2]
[407643741,1772602232439,-151.0,0.00014646,2]
[407643742,1772602232450,-151.0,0.00014646,2]
[407643743,1772602232459,-151.0,0.00014646,2]
[407643745,1772602232468,-1278.0,0.00014654,2]
[407643747,1772602232477,-1212.0,0.00014654,2]
[407643748,1772602232488,-921.0,0.00014654,2]
[407643750,1772602232498,-1341.0,0.00014654,2]
[407643751,1772602232507,-5987.0,0.00014654,2]
[407643752,1772602232517,-166.66,0.00014759,2]
[407643753,1772602232527,-154.0,0.00014815,3]
[407643754,1772602232536,-250.0,0.00015,2]
[407643755,1772602232546,-3240.0,0.00015014,2]
[407643756,1772602232556,-1592.19,0.00015024,2]
[407643757,1772602232566,-166.66,0.00015063,2]
[407643758,1772602232575,-1063.37145426,0.00015134,2]
[407643759,1772602232588,-16167.60854574,0.00015134,2]
[407643760,1772602232597,-746.89,0.0001522,2]
[407643761,1772602232607,-150.0,0.00015318,2]
[407643762,1772602232617,-166.66,0.00015368,2]
[407643763,1772602232627,-166.66,0.00015672,2]
[407643764,1772602232638,-166.66,0.00015976,2]
[407643765,1772602232647,-252.67365585,0.00016195,2]
[407643766,1772602232657,-721.12765535,0.00016195,2]
[407643767,1772602232666,-500.0,0.00016195,2]
[407643768,1772602232677,-151.0,0.00016195,2]
[407643769,1772602232686,-578.20924308,0.00016195,2]
[407643770,1772602232696,-693.3919763,0.00016195,2]
[407643771,1772602232708,-500.0,0.00016247,2]
[407643772,1772602232718,-719.04747942,0.0001625,2]
[407643773,1772602232729,-745.65223616,0.00016305,2]
[407643774,1772602232738,-773.2413689,0.0001636,2]
[407643775,1772602232747,-3230.95,0.00016376,2]
[407643776,1772602232757,-801.85129955,0.00016415,2]
[407643777,1772602232772,-831.51979763,0.0001647,2]
[407643778,1772602232781,-862.28603014,0.00016525,2]
[407643779,1772602232790,-894.19061326,0.0001658,2]
[407643780,1772602232799,-927.27566595,0.00016635,2]
[407643781,1772602232809,-961.58486559,0.0001669,2]
[407643782,1772602232818,-997.16350561,0.00016745,2]
[407643783,1772602232827,-500.0,0.00016973,2]
[407643784,1772602232836,-300.0,0.00017,2]
[407643785,1772602232846,-500.0,0.00017036,2]
[407643786,1772602232855,-614.202,0.00017351,2]
[407643787,1772602232865,-245.98799773,0.00017439,2]
[407643788,1772602232874,-2608.8225,0.0001744,2]
[407643789,1772602232883,-194.91338888,0.0001744,2]
[407643790,1772602232893,-439.04260017,0.0001744,2]
[407643791,1772602232903,-2500.0,0.0001744,2]
[407643792,1772602232913,-5000.0,0.0001744,2]
[407643793,1772602232923,-251.4432,0.0001744,2]
[407643794,1772602232933,-224.10853532,0.0001744,2]
[407643795,1772602232943,-439.04260015,0.00017491,2]
[407643796,1772602232952,-224.10853526,0.00017491,2]
[407643797,1772602232962,-1000.0,0.00017521,2]
[407643798,1772602232971,-152.96961451,0.0001753,2]
[407643799,1772602232993,-500.0,0.00017539,2]
[407643800,1772602233002,-500.0,0.00017539,2]
[407643801,1772602233011,-500.0,0.00017539,2]
[407643802,1772602233021,-500.0,0.00017539,2]
[407643803,1772602233030,-202.3756604,0.00017539,2]
[407643804,1772602233042,-500.0,0.00017539,2]
[407643805,1772602233063,-500.0,0.00017539,2]
[407643806,1772602233073,-500.0,0.00017539,2]
[407643807,1772602233083,-500.0,0.00017539,2]
[407643808,1772602233093,-500.0,0.00017539,2]
[407643809,1772602233102,-500.0,0.00017539,2]
[407643810,1772602233112,-500.0,0.00017539,2]
[407643811,1772602233122,-500.0,0.00017539,2]
[407643812,1772602233132,-500.0,0.00017539,2]
[407643813,1772602233141,-500.0,0.00017539,2]
[407643814,1772602233151,-500.0,0.00017539,2]
[407643815,1772602233160,-500.0,0.00017539,2]
[407643816,1772602233169,-500.0,0.00017539,2]
[407643817,1772602233179,-500.0,0.00017539,2]
[407643818,1772602233188,-500.0,0.00017539,2]
[407643819,1772602233197,-500.0,0.00017539,2]
[407643820,1772602233207,-500.0,0.00017539,2]
[407643821,1772602233217,-500.0,0.00017539,2]
[407643822,1772602233227,-500.0,0.00017539,2]
[407643823,1772602233237,-500.0,0.00017539,2]
[407643824,1772602233246,-500.0,0.00017539,2]
[407643825,1772602233256,-289.3526211,0.00017539,2]
[407643826,1772602233265,-453.65220539,0.00017539,2]
[407643827,1772602233275,-579.93991965,0.00017539,2]
[407643828,1772602233285,-531.3538816,0.00017539,2]
[407643829,1772602233294,-306.6537944,0.00017539,2]
[407643830,1772602233305,-4036.0,0.0001754,2]
[407643831,1772602233315,-39667.44811961,0.0001754,2]
[407643832,1772602233327,-1254.41808677,0.0001754,2]
[407643836,1772602238157,-3731.8588095,0.0001754,2]
[407643837,1772602238378,-6360.0,0.0001754,2]
[407643847,1772602240355,-361.01643239,0.00014654,2]
[407643848,1772602240367,-257.98356761,0.00014654,2]
[407643849,1772602240376,-1460620.78609217,0.0001754,2]
[407643857,1772602243512,-510.77693968,0.0001754,2]
[407643858,1772602243523,-33880.0,0.0001754,2]
[407643862,1772602245992,-2041.59274058,0.0001754,2]
[407643863,1772602246268,-724.8246332,0.0001754,2]
[407643867,1772602577171,700.14,0.00017,120]
[407643915,1772603432157,-300.0,9.6e-05,2]
[407643916,1772603432217,-345.51780687,9.6e-05,2]
[407643917,1772603432229,-129.16219313,9.6e-05,2]
[407643918,1772603432239,-250.0,0.0001008,2]
[407643919,1772603432248,-215.87103594,0.00010459,2]
[407643920,1772603432257,-506.0,0.00010559,2]
[407643921,1772603432266,-300.0,0.00010559,2]
[407643922,1772603432276,-1200.0,0.00010559,2]
[407643923,1772603432285,-4651.33358074,0.0001056,2]
[407643924,1772603432294,-250.0,0.0001056,2]
[407643925,1772603432304,-250.0,0.00011307,2]
[407643926,1772603432313,-1598.0,0.00011615,2]
[407643927,1772603432323,-469.2394,0.000121,2]
[407643928,1772603432332,-328.73922611,0.000122,2]
[407643930,1772603432342,-527.93219284,0.000122,2]
[407643932,1772603432351,-500.0,0.000122,2]
[407643934,1772603432361,-1208.07,0.00013426,2]
[407643953,1772603432567,-786.81184138,0.0001371,2]
[407643956,1772603432584,-500.0,0.00013945,2]
[407643958,1772603432594,-505.0,0.000142,2]
[407643960,1772603432604,-1519.0,0.00014322,2]
[407643962,1772603432613,-166.66,0.0001434,2]
[407643964,1772603432622,-3531.11,0.00014359,2]
[407643966,1772603432631,-493.08473435,0.00014373,2]
[407643968,1772603432641,-342.0,0.000144,2]
[407643970,1772603432650,-573.0,0.00014428,2]
[407643972,1772603432659,-215.87103593,0.00014453,2]
[407643974,1772603432669,-179.28682828,0.000145,2]
[407643976,1772603432678,-152.96961452,0.00014544,2]
[407643978,1772603432687,-200.0,0.00014546,2]
[407643980,1772603432699,-647.40223119,0.00014546,2]
[407643982,1772603432708,-199.99998341,0.00014546,2]
[407643984,1772603432718,-500.0,0.00014546,2]
[407643986,1772603432728,-500.0,0.00014546,2]
[407643988,1772603432741,-500.0,0.00014546,2]
[407643990,1772603432750,-500.0,0.00014546,2]
[407643992,1772603432760,-500.0,0.00014546,2]
[407643993,1772603432770,-500.0,0.00014546,2]
[407643994,1772603432779,-500.0,0.00014546,2]
[407643995,1772603432789,-500.0,0.00014546,2]
[407643996,1772603432799,-500.0,0.00014546,2]
[407643997,1772603432808,-151.0,0.00014546,2]
[407643998,1772603432817,-151.0,0.00014546,2]
[407643999,1772603432827,-151.0,0.00014546,2]
[407644000,1772603432836,-151.0,0.00014546,2]
[407644001,1772603432846,-151.0,0.00014546,2]
[407644002,1772603432855,-151.0,0.00014546,2]
[407644003,1772603432865,-151.0,0.00014546,2]
[407644004,1772603432874,-151.0,0.00014546,2]
[407644005,1772603432884,-151.0,0.00014546,2]
[407644006,1772603432893,-151.0,0.00014546,2]
[407644007,1772603432903,-151.0,0.00014546,2]
[407644008,1772603432912,-265.576,0.00014552,2]
[407644009,1772603432922,-978.556,0.00014552,2]
[407644010,1772603432932,-749.28432341,0.00014553,2]
[407644011,1772603432941,-749.28432341,0.00014553,2]
[407644012,1772603432951,-749.28432341,0.00014553,2]
[407644013,1772603432960,-749.28432341,0.00014553,2]
[407644014,1772603432969,-749.28432341,0.00014553,2]
[407644015,1772603432978,-749.28432341,0.00014553,2]
[407644016,1772603432987,-749.28432341,0.00014553,2]
[407644017,1772603432997,-749.28432341,0.00014553,2]
[407644018,1772603433007,-749.28432341,0.00014553,2]
[407644019,1772603433016,-749.28432341,0.00014553,2]
[407644020,1772603433026,-749.28432341,0.00014553,2]
[407644021,1772603433035,-749.28432341,0.00014553,2]
[407644022,1772603433044,-749.28432341,0.00014553,2]
[407644023,1772603433053,-749.28432341,0.00014553,2]
[407644024,1772603433062,-749.28432341,0.00014553,2]
[407644025,1772603433072,-749.28432341,0.00014553,2]
[407644026,1772603433081,-749.28432341,0.00014553,2]
[407644027,1772603433091,-749.28432341,0.00014553,2]
[407644028,1772603433100,-749.28432341,0.00014553,2]
[407644029,1772603433109,-749.28432341,0.00014553,2]
[407644030,1772603433119,-749.28432341,0.00014553,2]
[407644031,1772603433128,-749.28432341,0.00014553,2]
[407644032,1772603433138,-749.28432341,0.00014553,2]
[407644033,1772603433147,-749.28432341,0.00014553,2]
[407644034,1772603433156,-749.28432341,0.00014553,2]
[407644035,1772603433166,-749.28432341,0.00014553,2]
[407644036,1772603433175,-749.28432341,0.00014553,2]
[407644037,1772603433186,-749.28432341,0.00014553,2]
[407644038,1772603433196,-749.28432341,0.00014553,2]
[407644039,1772603433206,-749.28432341,0.00014553,2]
[407644040,1772603433215,-749.28432341,0.00014553,2]
[407644041,1772603433224,-749.28432341,0.00014553,2]
[407644042,1772603433233,-749.28432341,0.00014553,2]
[407644043,1772603433242,-749.28432341,0.00014553,2]
[407644044,1772603433252,-749.28432341,0.00014553,2]
[407644045,1772603433261,-749.28432341,0.00014553,2]
[407644046,1772603433270,-749.28432341,0.00014553,2]
[407644047,1772603433279,-749.28432341,0.00014553,2]
[407644048,1772603433288,-749.28432341,0.00014553,2]
[407644049,1772603433298,-749.28432341,0.00014553,2]
[407644050,1772603433307,-749.28432341,0.00014553,2]
[407644051,1772603433316,-749.28432341,0.00014553,2]
[407644052,1772603433326,-749.28432341,0.00014553,2]
[407644053,1772603433335,-749.28432341,0.00014553,2]
[407644054,1772603433345,-749.28432341,0.00014553,2]
[407644055,1772603433354,-749.28432341,0.00014553,2]
[407644056,1772603433364,-749.28432341,0.00014553,2]
[407644057,1772603433373,-749.28432341,0.00014553,2]
[407644058,1772603433383,-749.28432341,0.00014553,2]
[407644059,1772603433392,-749.28432341,0.00014553,2]
[407644060,1772603433402,-749.28432341,0.00014553,2]
[407644061,1772603433412,-749.28432341,0.00014553,2]
[407644062,1772603433422,-749.28432341,0.00014553,2]
[407644063,1772603433431,-749.28432341,0.00014553,2]
[407644064,1772603433440,-749.28432341,0.00014553,2]
[407644065,1772603433452,-749.28432341,0.00014553,2]
[407644066,1772603433462,-749.28432341,0.00014553,2]
[407644067,1772603433471,-739.6161386,0.00014553,2]
[407644068,1772603433481,-739.6161386,0.00014553,2]
[407644069,1772603433491,-739.6161386,0.00014553,2]
[407644070,1772603433500,-739.6161386,0.00014553,2]
[407644071,1772603433511,-739.6161386,0.00014553,2]
[407644072,1772603433520,-739.6161386,0.00014553,2]
[407644073,1772603433529,-739.6161386,0.00014553,2]
[407644074,1772603433539,-739.6161386,0.00014553,2]
[407644075,1772603433548,-739.6161386,0.00014553,2]
[407644076,1772603433557,-739.6161386,0.00014553,2]
[407644077,1772603433566,-739.6161386,0.00014553,2]
[407644078,1772603433576,-739.6161386,0.00014553,2]
[407644079,1772603433585,-739.6161386,0.00014553,2]
[407644080,1772603433595,-739.6161386,0.00014553,2]
[407644081,1772603433604,-739.6161386,0.00014553,2]
[407644082,1772603433614,-739.6161386,0.00014553,2]
[407644083,1772603433623,-739.6161386,0.00014553,2]
[407644084,1772603433633,-739.6161386,0.00014553,2]
[407644085,1772603433643,-739.6161386,0.00014553,2]
[407644086,1772603433652,-739.6161386,0.00014553,2]
[407644087,1772603433662,-739.6161386,0.00014553,2]
[407644088,1772603433672,-739.6161386,0.00014553,2]
[407644089,1772603433682,-739.6161386,0.00014553,2]
[407644090,1772603433691,-739.6161386,0.00014553,2]
[407644091,1772603433701,-739.6161386,0.00014553,2]
[407644092,1772603433711,-739.6161386,0.00014553,2]
[407644093,1772603433720,-249.51218711,0.00014553,2]
[407644094,1772603433733,-500.0,0.00014553,2]
[407644095,1772603433743,-242.64825161,0.00014553,2]